bitfinex/quotes_ETHUSD_20250822
["timestamp","ask_amount","ask_price","bid_price","bid_amount"]
[1755872153751,0.4652,4625.7,4621.5,1.665]
[1755872153920,2.62705665,4625.7,4621.6,0.21011]
[1755872154121,0.4652,4625.7,4621.6,0.21011]
[1755872154346,0.4652,4625.7,4621.6,0.20711]
[1755872154549,5.204,4629.2,4621.6,0.20711]
[1755872154752,1.01006826,4631.7,4621.6,0.20711]
[1755872154753,0.4652,4630.0,4621.9,1.665]
[1755872155056,12.36,4629.9,4622.0,10.43666723]
[1755872155221,0.4652,4629.8,4622.1,3.4361]
[1755872155423,1.665,4628.4,4622.0,0.13856723]
[1755872155650,5.24206539,4628.3,4621.4,0.4361]
[1755872155851,3.0,4628.1,4621.4,0.4361]
[1755872156056,3.0,4627.9,4621.4,0.4361]
[1755872156221,0.42506539,4628.4,4621.5,0.02163799]
[1755872156427,0.66,4628.2,4621.6,2.1001]
[1755872156618,1.664,4628.7,4621.8,0.66]
[1755872156834,5.201,4630.5,4622.1,0.66]
[1755872156835,1.664,4628.6,4622.1,0.66]
[1755872157045,1.482,4629.2,4623.5,2.16285096]
[1755872157046,1.664,4628.5,4623.5,2.16285096]
[1755872157322,1.664,4628.5,4623.6,0.45772816]
[1755872157556,3.0,4628.3,4622.6,0.4361]
[1755872157728,3.0,4628.1,4622.6,0.4361]
[1755872157929,7.152,4628.0,4622.6,0.4361]
[1755872158129,2.16085396,4627.8,4622.7,2.16323793]
[1755872158335,0.0657,4627.9,4622.6,0.4361]
[1755872158530,12.353,4628.2,4622.6,0.4361]
[1755872158531,2.16098768,4627.6,4622.6,0.4361]
[1755872158856,0.0657,4627.5,4622.6,0.4361]
[1755872159045,2.1611559,4627.2,4622.6,2.1001]
[1755872159247,0.66,4627.0,4622.7,0.21001]
[1755872159451,0.0657,4629.5,4622.8,0.4361]
[1755872159760,1.664,4629.4,4625.0,2.16214886]
[1755872159962,1.664,4629.4,4625.1,0.4361]
[1755872160124,1.7297,4630.7,4625.2,0.02162068]
[1755872160327,1.7297,4630.7,4625.3,0.21217207]
[1755872160670,1.7297,4630.7,4625.4,0.45771975]
[1755872160966,1.7297,4630.7,4625.5,0.02161928]
[1755872161124,1.7297,4630.7,4625.6,0.45771881]
[1755872161125,1.664,4630.7,4625.6,0.45771881]
[1755872161322,0.2,4629.0,4625.7,2.16183496]
[1755872161545,0.2,4629.0,4625.0,2.16215615]
[1755872161546,1.7297,4628.9,4625.8,0.2597935]
[1755872161737,1.7297,4628.9,4625.8,0.4361]
[1755872161738,1.664,4628.9,4625.8,0.4361]
[1755872161945,0.202,4629.0,4628.4,2.16055247]
[1755872162150,0.202,4629.0,4628.0,0.4361]
[1755872162834,0.202,4629.0,4626.7,1.663]
[1755872163166,0.66,4628.9,4625.8,0.16633868]
[1755872163468,0.202,4629.0,4625.9,0.4361]
[1755872163670,0.202,4629.0,4626.6,0.108]
[1755872163841,0.202,4629.0,4625.4,0.4361]
[1755872164040,0.66,4628.9,4625.5,2.16192844]
[1755872164241,0.66,4628.9,4624.7,1.663]
[1755872164242,0.202,4629.0,4625.6,0.71752165]
[1755872164444,0.202,4629.0,4625.7,0.4361]
[1755872164642,0.66,4628.9,4626.4,0.108]
[1755872164844,0.66,4628.7,4625.7,0.4361]
[1755872165074,0.66,4628.7,4626.3,0.108]
[1755872165273,0.66,4628.7,4623.9,7.147]
[1755872165274,0.0657,4628.6,4625.1,0.108]
[1755872165478,0.66,4628.5,4623.8,0.4361]
[1755872165659,0.66,4628.5,4623.9,0.02162676]
[1755872165859,0.002,4631.1,4625.6,0.001]
[1755872166061,0.002,4631.1,4626.4,1.663]
[1755872166062,0.002,4630.7,4626.4,1.663]
[1755872166395,0.002,4630.7,4626.6,0.66]
[1755872166583,0.002,4630.7,4626.7,0.02161367]
[1755872166785,0.002,4630.7,4626.8,0.4361]
[1755872167365,0.002,4630.7,4627.8,0.02]
[1755872167563,0.2,4637.2,4627.8,0.02]
[1755872167564,1.386,4635.9,4628.0,3.0]
[1755872167764,1.386,4635.9,4627.8,0.02]
[1755872167765,0.11296435,4635.6,4629.6,3.0]
[1755872167975,1.662,4640.2,4632.4,1.662]
[1755872168165,1.662,4640.2,4632.6,3.0]
[1755872168480,2.15380967,4643.0,4631.3,0.66]
[1755872168481,0.11284517,4642.6,4635.9,1.662]
[1755872168802,1.662,4643.7,4636.0,0.61682284]
[1755872169100,1.662,4645.6,4637.7,2.15624124]
[1755872169317,5.195,4647.0,4640.8,2.15476901]
[1755872169318,0.0869592,4647.0,4640.8,2.15476901]
[1755872169496,1.662,4647.1,4641.0,3.0]
[1755872169875,1.662,4645.8,4641.1,0.45314661]
[1755872170074,0.0042,4645.0,4641.1,0.45314661]
[1755872170274,0.0042,4645.0,4641.1,0.4316]
[1755872171109,14.1936,4644.9,4639.1,0.4316]
[1755872171313,2.15299158,4644.7,4639.2,0.02155544]
[1755872171469,2.15299158,4644.7,4637.7,0.4316]
[1755872171470,5.15308429,4644.5,4637.7,0.4316]
[1755872171672,2.15450813,4641.5,4635.2,0.66]
[1755872171875,2.15541852,4639.5,4633.4,0.4316]
[1755872172067,1.66,4640.7,4635.7,2.1571673]
[1755872172296,1.66,4640.7,4633.5,1.66]
[1755872172297,1.66,4641.1,4635.9,2.15707845]
[1755872172505,5.189,4643.0,4634.4,5.189]
[1755872172506,1.66,4641.7,4636.0,0.69046785]
[1755872172673,2.156012,4638.2,4634.5,0.0215773]
[1755872172872,2.156012,4638.2,4628.7,13.13607843]
[1755872172873,3.0,4638.0,4633.4,0.02158242]
[1755872173183,2.06379947,4637.9,4632.0,1.66]
[1755872173386,0.66,4637.7,4631.7,1.66]
[1755872173618,0.3459,4637.6,4631.1,5.189]
[1755872173776,7.0,4637.9,4631.8,0.4316]
[1755872173974,7.0,4637.9,4637.8,0.012]
[1755872174402,7.0,4637.9,4632.8,5.188]
[1755872174403,19.322,4637.9,4635.0,0.02157497]
[1755872174602,3.0,4637.8,4632.4,0.66]
[1755872174807,0.40379947,4637.7,4632.3,0.4316]
[1755872174974,0.40379947,4637.7,4629.7,5.188]
[1755872174975,0.66,4637.5,4629.7,5.188]
[1755872175183,0.66,4637.5,4629.8,1.66]
[1755872175509,7.0,4637.9,4631.4,2.15917433]
[1755872175695,7.0,4637.9,4634.8,3.0]
[1755872175908,7.0,4637.9,4635.0,2.1574973]
[1755872176078,7.0,4637.9,4635.1,0.0215745]
[1755872176079,1e-08,4637.9,4635.1,0.0215745]
[1755872176282,0.4695,4639.5,4635.5,0.108]
[1755872176592,0.4695,4639.5,4633.6,2.15813113]
[1755872176593,1.66,4639.4,4637.8,0.108]
[1755872176799,0.4695,4639.3,4635.0,0.02157497]
[1755872177015,0.4695,4639.3,4633.2,1.659]
[1755872177305,0.4695,4639.3,4628.9,1.0110761]
[1755872177306,2.15678845,4636.6,4630.5,1.659]
[1755872177517,13.13607843,4637.7,4629.6,2.15999246]
[1755872177518,12.2015,4636.5,4629.6,1.659]
[1755872177720,1.659,4637.8,4629.6,1.659]
[1755872177721,1.659,4637.8,4634.7,2.15762286]
[1755872177921,0.4695,4640.3,4634.8,1.659]
[1755872178082,0.4695,4640.3,4636.4,2.15682821]
[1755872178083,6.99999,4636.6,4636.4,2.15682821]
[1755872178285,0.4695,4640.3,4634.8,4.659]
[1755872178585,0.4695,4640.3,4634.9,0.02157543]
[1755872178896,0.4695,4641.4,4635.4,0.66]
[1755872179098,0.4695,4642.7,4636.7,1.05307722]
[1755872179294,0.002,4642.1,4641.9,2.15425365]
[1755872179526,0.4695,4646.4,4644.8,2.1529182]
[1755872179827,0.4695,4647.9,4646.7,2.05272454]
[1755872180042,0.02,4648.8,4647.7,2.15160186]
[1755872180242,1e-08,4647.8,4647.7,3.80960186]
[1755872180392,1e-08,4647.8,4647.7,2.15160186]
[1755872180591,1e-08,4647.8,4645.8,5.183]
[1755872180893,0.4695,4647.7,4640.1,0.2]
[1755872181092,0.4695,4647.7,4627.3,0.33637927]
[1755872181093,13.13607843,4646.5,4637.8,0.02156194]
[1755872181435,13.13607843,4646.5,4633.8,13.13607843]
[1755872181436,14.25890784,4646.4,4637.9,1.097]
[1755872181640,14.25890784,4646.4,4638.0,1.658]
[1755872181641,0.66,4646.3,4638.0,1.658]
[1755872181790,0.4695,4646.2,4638.1,0.02156055]
[1755872182134,0.4695,4646.2,4641.6,2.15440305]
[1755872182336,1.658,4647.5,4641.7,6.86254383]
[1755872182533,1.658,4647.5,4641.9,2.15429026]
[1755872182733,1.658,4647.5,4642.0,0.02154243]
[1755872182893,3.0,4647.4,4642.0,0.02154243]
[1755872183095,14.79407843,4647.5,4641.7,1.658]
[1755872183294,14.79407843,4647.5,4641.7,4.67954383]
[1755872183525,14.79407843,4647.5,4641.7,1.62954383]
[1755872183724,16.27348627,4647.5,4641.7,1.608]
[1755872183923,0.022,4648.8,4641.8,0.2188]
[1755872184124,0.00200001,4647.8,4641.8,0.02154336]
[1755872184307,0.4695,4647.7,4641.9,6.211]
[1755872184516,0.4695,4647.7,4642.5,0.66]
[1755872184720,0.00200001,4647.8,4644.4,0.66]
[1755872184942,0.022,4648.8,4648.7,2.15113902]
[1755872185153,0.02,4649.8,4649.7,2.15067638]
[1755872185434,0.17647059,4654.2,4652.9,2.14919727]
[1755872185645,0.17647059,4654.2,4652.9,2.09919727]
[1755872185935,0.17647059,4654.2,4650.6,3.0]
[1755872186247,0.17647059,4654.2,4650.6,2.15026018]
[1755872186537,0.17647059,4654.2,4650.0,5.176]
[1755872186538,0.4695,4652.9,4650.0,5.176]
[1755872186835,0.4695,4652.9,4650.1,0.02150491]
[1755872187017,1.83247059,4654.2,4650.1,0.02150491]
[1755872187018,0.4695,4653.8,4650.1,2.15049138]
[1755872187228,3.4695,4652.8,4645.8,5.176]
[1755872187409,0.4695,4652.8,4647.2,2.15183336]
[1755872187643,0.4695,4652.8,4651.5,0.1072]
[1755872187973,0.4695,4652.8,4647.3,0.03851787]
[1755872187974,3.0,4652.6,4648.1,5.176]
[1755872188148,3.0,4652.6,4647.3,0.02151787]
[1755872188149,0.4695,4652.5,4648.2,0.0215137]
[1755872188321,3.0,4652.4,4646.8,0.02]
[1755872188516,1.02918331,4654.1,4644.1,0.16119694]
[1755872188517,14.79207843,4650.6,4644.1,0.16119694]
[1755872188822,3.0,4650.4,4644.1,0.16119694]
[1755872189035,3.0,4648.6,4641.6,1.656]
[1755872189219,3.0,4648.4,4640.9,0.02154754]
[1755872189418,2.08310784,4648.5,4640.6,5.175]
[1755872189419,3.0,4648.2,4641.0,0.0206]
[1755872189618,0.11247337,4651.5,4642.7,1.04410846]
[1755872189820,0.4695,4651.4,4645.5,1.656]
[1755872190053,0.4695,4651.4,4645.7,3.0]
[1755872190255,0.4695,4651.4,4645.8,0.0206]
[1755872190427,0.02311091,4651.3,4645.9,8.771]
[1755872190639,0.4695,4652.6,4646.0,0.04212389]
[1755872190852,0.4695,4652.6,4646.1,0.0206]
[1755872191033,0.4695,4652.6,4647.4,1.656]
[1755872191219,0.4695,4652.6,4647.8,2.15155557]
[1755872191426,0.64597059,4654.2,4647.9,0.04211509]
[1755872191654,0.64597059,4654.2,4648.0,0.0206]
[1755872191816,0.4695,4652.9,4650.3,2.15038208]
[1755872192018,0.4695,4652.9,4648.1,0.02151416]
[1755872192019,0.02311091,4652.8,4649.2,1.655]
[1755872192241,0.02311091,4652.8,4647.8,2.078]
[1755872192242,0.4695,4652.7,4649.3,0.02150861]
[1755872192457,0.02311091,4652.6,4647.6,7.112]
[1755872192654,5.1245,4652.5,4647.2,1.655]
[1755872192860,3.0,4652.3,4647.3,0.02151787]
[1755872193021,0.02311091,4652.2,4647.5,2.15169445]
[1755872193353,0.4695,4652.1,4649.0,2.15097298]
[1755872193519,0.4695,4652.1,4647.2,1.655]
[1755872193520,0.02311091,4652.0,4647.2,1.655]
[1755872193720,0.02311091,4652.0,4646.8,0.02]
[1755872193721,1.06466791,4651.8,4646.8,0.02]
[1755872193921,1.655,4650.6,4642.0,1.655]
[1755872194132,1.655,4650.6,4642.9,2.15381653]
[1755872194133,0.49261091,4650.5,4642.9,2.15381653]
[1755872194333,3.0,4648.9,4642.2,2.15415104]
[1755872194532,3.0,4648.9,4640.2,0.0406]
[1755872194533,1.655,4647.8,4641.5,0.02154475]
[1755872194759,13.13607843,4647.2,4638.5,5.173]
[1755872194954,13.13607843,4647.2,4638.6,6.84955822]
[1755872194955,4.80541875,4647.1,4638.6,6.84955822]
[1755872195177,0.49181091,4647.0,4638.7,1.09473918]
[1755872195337,0.4695,4647.0,4639.9,2.35521886]
[1755872195672,0.4695,4649.4,4641.9,1.0708985]
[1755872195855,0.4695,4649.4,4643.4,2.15359434]
[1755872196056,0.4695,4649.4,4643.1,1.655]
[1755872196057,0.4695,4649.4,4643.5,5.22423547]
[1755872196291,0.4695,4649.4,4644.4,2.15310402]
[1755872196568,1.655,4651.6,4644.5,1.70853084]
[1755872196745,0.02231091,4652.5,4644.6,0.0342]
[1755872197065,0.02231091,4652.5,4644.8,3.0]
[1755872197274,0.02231091,4652.5,4645.0,3.0]
[1755872197440,2.14949608,4652.3,4645.3,2.15271349]
[1755872197642,0.02231091,4652.2,4644.9,7.1492]
[1755872197948,0.02231091,4652.2,4646.8,0.02]
[1755872197949,0.02,4647.8,4646.8,0.02]
[1755872198150,0.02,4647.8,4647.6,2.15161242]
[1755872198474,0.02,4648.8,4646.9,0.02151972]
[1755872198475,0.02,4648.8,4648.7,2.15113902]
[1755872198804,0.4519,4651.2,4648.7,2.15113902]
[1755872198805,0.4519,4652.4,4649.1,0.66]
[1755872199078,0.4519,4652.9,4649.2,0.02150907]
[1755872199382,0.02231091,4652.8,4648.7,1.655]
[1755872199681,0.4519,4652.7,4648.8,2.15109275]
[1755872199855,0.02231091,4652.6,4649.0,2.15100021]
[1755872200035,0.4519,4652.7,4649.1,0.02150953]
[1755872200237,0.02231091,4652.6,4648.9,2.15104648]
[1755872200477,0.4519,4652.5,4647.1,1.655]
[1755872200678,0.235232,4652.4,4645.8,0.02]
[1755872200841,3.0,4651.9,4646.9,2.15197228]
[1755872201040,3.0,4651.9,4645.8,0.02]
[1755872201041,1.13421091,4651.8,4645.8,0.02]
[1755872201339,3.0,4651.6,4648.1,2.15139959]
[1755872201540,0.21292109,4652.4,4646.2,1.654]
[1755872201541,0.47421091,4651.5,4647.2,5.17]
[1755872201767,7.109,4651.4,4646.9,2.15197228]
[1755872201968,0.66,4651.2,4646.8,0.02]
[1755872202138,0.47421091,4651.3,4646.8,0.02]
[1755872202139,0.66,4651.0,4646.8,0.02]
[1755872202339,0.02231091,4650.9,4646.9,2.15197228]
[1755872202595,0.66,4650.8,4646.8,0.02]
[1755872202882,3.66,4651.0,4646.8,0.02]
[1755872202883,0.66,4650.6,4646.8,0.02]
[1755872203039,0.66,4650.3,4645.8,0.02]
[1755872203238,0.66,4649.5,4645.8,0.02]
[1755872203457,0.47421091,4649.4,4644.9,2.15289887]
[1755872203645,1.654,4649.3,4643.5,1.654]
[1755872203857,3.0,4649.1,4643.5,1.654]
[1755872204061,0.02,4647.8,4643.9,0.02153362]
[1755872204267,0.02,4647.8,4644.8,0.18271555]
[1755872204587,0.02,4647.8,4644.9,0.02152898]
[1755872204740,0.02,4647.8,4645.0,0.02152852]
[1755872204941,0.02,4647.8,4644.8,0.02]
[1755872205141,0.02,4647.8,4646.2,2.15227205]
[1755872205344,0.47421091,4647.7,4644.8,0.02]
[1755872205578,0.66,4647.6,4644.8,0.02]
[1755872205777,0.66,4647.4,4644.9,0.02152898]
[1755872205948,0.02231091,4647.5,4645.0,0.02152852]
[1755872205949,1.654,4647.5,4645.0,0.02152852]
[1755872206151,1.8194,4647.5,4644.8,0.02]
[1755872206425,1.8194,4647.5,4642.8,0.02]
[1755872206556,13.13607843,4646.5,4642.8,0.02]
[1755872206758,7.11,4646.4,4642.8,0.02]
[1755872206958,1.655,4645.6,4638.7,1.655]
[1755872207178,12.4495,4645.5,4639.1,2.15558936]
[1755872207382,1.655,4645.4,4639.2,0.45355544]
[1755872207591,1.655,4645.3,4642.0,2.15424386]
[1755872207896,1.655,4645.3,4639.2,0.432]
[1755872207897,3.66,4642.4,4634.8,0.02]
[1755872208071,0.66,4640.0,4634.8,0.02]
[1755872208267,12.75745033,4639.9,4634.8,0.02]
[1755872208483,2.1069,4639.8,4635.1,1.655]
[1755872208683,3.0,4639.6,4635.5,0.108]
[1755872208883,0.68155033,4639.5,4634.8,0.02]
[1755872209083,0.4519,4639.4,4634.9,0.02157543]
[1755872209284,0.4519,4639.4,4634.8,0.02]
[1755872209285,0.68155033,4639.3,4634.8,0.02]
[1755872209595,0.66,4639.0,4634.8,0.02]
[1755872209802,0.02155033,4638.9,4635.9,1.67657078]
[1755872209963,5.172,4644.0,4636.0,0.02157031]
[1755872209964,0.4519,4639.2,4636.0,0.02157031]
[1755872210160,0.02155033,4639.1,4636.0,0.02157031]
[1755872210366,0.02155033,4639.1,4634.8,0.02]
[1755872210367,0.66,4638.7,4634.8,0.02]
[1755872210593,0.66,4638.5,4634.8,0.02]
[1755872210794,1.85689536,4638.4,4634.8,0.02]
[1755872210994,5.176,4640.3,4635.9,0.02157078]
[1755872211194,2.15385104,4642.9,4634.8,0.02]
[1755872211195,6.832,4640.9,4636.0,0.02157031]
[1755872211406,7.006,4640.2,4634.8,0.02]
[1755872211607,11.26,4640.8,4634.8,0.02]
[1755872211911,5.176,4640.8,4635.9,0.02157078]
[1755872212083,2.3392,4640.7,4635.1,1.656]
[1755872212487,2.35369474,4643.2,4635.1,1.656]
[1755872212488,1.656,4642.4,4636.0,2.15703192]
[1755872212677,0.78435104,4643.9,4636.7,1.656]
[1755872212880,1.656,4643.9,4638.3,2.15594396]
[1755872213074,1.656,4643.9,4637.5,1.657]
[1755872213075,2.15340884,4643.8,4637.5,1.657]
[1755872213507,1.656,4643.9,4637.5,1.657]
[1755872213812,0.66,4643.5,4636.2,5.176]
[1755872214020,3.1656,4643.8,4636.4,2.15684582]
[1755872214021,1.07832423,4643.3,4636.4,2.15684582]
[1755872214182,2.15385873,4642.9,4636.4,5.17841427]
[1755872214384,0.1656,4643.8,4636.5,10.552]
[1755872214585,1.657,4643.9,4636.8,0.66]
[1755872214586,0.18226,4643.7,4636.8,0.66]
[1755872214796,4.84349464,4645.8,4636.6,7.57356752]
[1755872214797,2.15188819,4647.1,4638.0,1.657]
[1755872214995,13.15607843,4647.8,4636.9,0.45356613]
[1755872214996,0.02,4647.8,4642.0,2.15422634]
[1755872215210,0.02,4647.8,4642.1,7.267]
[1755872215413,0.02,4647.8,4642.2,1.67854151]
[1755872215414,0.02,4642.8,4642.2,1.67854151]
[1755872215612,0.02,4642.8,4642.6,2.15393886]
[1755872215816,0.02,4643.8,4643.6,2.15346669]
[1755872216014,0.02,4647.8,4643.7,6.833]
[1755872216313,0.02,4647.8,4643.8,1.656]
[1755872216520,0.02,4647.8,4643.9,3.02153362]
[1755872216732,0.02,4647.8,4644.0,0.02153316]
[1755872216886,0.02,4647.8,4646.1,2.15231697]
[1755872217228,0.02,4647.8,4646.2,2.10952296]
[1755872217534,0.02,4647.8,4646.2,5.088]
[1755872218224,0.003,4652.6,4646.5,2.15215753]
[1755872218520,0.003,4652.6,4648.7,2.15113902]
[1755872218722,0.003,4652.6,4648.7,4.23913902]
[1755872218922,0.0192,4648.8,4648.7,2.088]
[1755872219088,0.0192,4648.8,4647.7,1.656]
[1755872219417,0.0192,4648.8,4647.0,0.432]
[1755872219418,0.0192,4648.8,4647.6,2.15164816]
[1755872219617,0.0192,4648.8,4647.5,1.656]
[1755872220387,0.0192,4648.8,4648.6,2.15117881]
[1755872220592,0.0192,4648.8,4647.6,0.432]
[1755872220892,0.0192,4648.8,4647.6,7.464]
[1755872221086,0.0192,4648.8,4647.6,0.432]
[1755872221291,0.0192,4648.8,4647.2,0.432]
[1755872221492,0.0192,4648.8,4646.2,1.656]
[1755872221691,0.0192,4648.8,4646.3,0.4535225]
[1755872221917,0.0192,4648.8,4646.3,0.432]
[1755872222394,2.14938205,4652.5,4646.4,0.02152203]
[1755872222595,1.9656382,4652.4,4646.5,0.432]
[1755872222909,0.003,4652.6,4646.5,0.45352157]
[1755872223306,2.82625345,4653.0,4647.7,1.655]
[1755872223634,1.655,4654.1,4648.0,5.173]
[1755872223817,2.516,4654.0,4647.8,0.432]
[1755872224001,1.655,4654.1,4648.1,0.432]
[1755872224196,0.17647059,4654.2,4648.1,0.432]
[1755872224396,0.17647059,4654.2,4648.2,0.0215137]
[1755872224600,2.69,4657.8,4648.2,0.0215137]
[1755872224601,5.171,4659.9,4649.6,0.2]
[1755872224906,1.654,4659.1,4650.8,2.81016771]
[1755872225097,2.14667578,4658.4,4650.9,0.432]
[1755872225294,2.14638334,4659.0,4651.1,2.15002902]
[1755872225498,1.654,4659.1,4651.3,3.0]
[1755872225803,2.14642941,4658.9,4651.4,0.432]
[1755872225996,1.654,4657.5,4649.6,0.432]
[1755872226196,0.2,4657.2,4649.6,0.432]
[1755872226395,3.0,4657.0,4649.6,0.432]
[1755872226649,0.66,4654.1,4648.9,1.81728282]
[1755872226942,5.171,4657.4,4648.9,1.81728282]
[1755872226943,1.654,4658.3,4650.5,1.654]
[1755872227097,1.654,4658.3,4650.7,2.15021394]
[1755872227296,0.02,4650.8,4650.6,2.60126018]
[1755872227544,0.02,4651.8,4650.6,0.451]
[1755872227740,0.02,4651.8,4651.6,2.14978604]
[1755872228040,0.02,4651.8,4647.6,1.654]
[1755872228240,1.654,4651.7,4647.9,0.45261509]
[1755872228535,1.654,4651.7,4646.8,0.02]
[1755872228536,1.654,4651.7,4646.8,2.17197751]
[1755872228735,1.654,4651.7,4648.0,2.15146299]
[1755872228940,0.02,4651.8,4647.9,0.02151509]
[1755872228941,0.0184671,4651.8,4648.2,2.15137042]
[1755872229141,0.0184671,4651.8,4648.1,7.2541]
[1755872229324,1.654,4651.7,4648.1,6.823]
[1755872229704,1.654,4651.7,4647.8,0.02]
[1755872230019,0.0184671,4651.8,4647.8,0.02]
[1755872230207,1.654,4651.7,4647.8,0.02]
[1755872231147,3.0,4651.1,4647.8,0.02]
[1755872231302,2.9992,4650.3,4647.8,0.02]
[1755872231635,0.55062366,4651.6,4646.8,0.02]
[1755872231636,1.654,4648.9,4646.8,0.02]
[1755872231842,2.15183336,4647.2,4646.3,1e-08]
[1755872232000,2.15183336,4647.2,4644.8,0.02]
[1755872232001,2.15289887,4644.9,4644.8,0.02]
[1755872232201,4.46689887,4644.9,4644.8,0.02]
[1755872232416,2.314,4644.9,4644.8,0.02]
[1755872233200,2.314,4644.9,4639.8,1.674]
[1755872233201,1.03230605,4644.7,4639.8,1.674]
[1755872233426,1.654,4644.9,4639.8,1.674]
[1755872233427,0.66,4644.5,4639.8,0.02]
[1755872233822,0.4425,4644.4,4639.8,0.02]
[1755872234232,0.66,4644.3,4639.8,0.02]
[1755872234440,2.15356704,4643.5,4639.8,0.02]
[1755872234648,0.66,4642.5,4639.8,0.02]
[1755872234851,14.1543567,4643.4,4638.8,0.02]
[1755872234852,3.0,4643.0,4638.8,0.02]
[1755872235221,2.81409704,4642.4,4638.8,0.02]
[1755872235417,2.15457135,4641.3,4638.8,0.02]
[1755872235640,0.66,4641.1,4638.8,0.02]
[1755872235855,0.66,4640.6,4637.8,0.02]
[1755872236060,0.66,4640.8,4634.9,0.001]
[1755872236061,0.66,4639.9,4634.9,0.001]
[1755872236356,0.33718565,4640.0,4634.9,0.001]
[1755872236591,8.767,4639.9,4635.3,1.655]
[1755872236743,1.656,4639.9,4636.7,2.15668169]
[1755872237079,0.33746749,4641.9,4636.8,3.45266659]
[1755872237254,0.33746749,4641.9,4636.9,0.4311]
[1755872237471,0.4425,4641.8,4636.9,0.4311]
[1755872237658,6.832,4641.7,4636.9,0.4311]
[1755872237985,3.0,4640.8,4635.2,0.4311]
[1755872238188,2.15503307,4640.3,4635.2,0.4311]
[1755872238393,0.4425,4640.2,4635.2,1.656]
[1755872238560,0.4425,4641.4,4635.9,0.4311]
[1755872238887,2.15456876,4641.3,4635.9,0.4311]
[1755872239049,0.70220688,4641.2,4635.9,0.45267078]
[1755872239242,5.6185,4641.1,4635.9,0.4311]
[1755872239485,0.4425,4641.0,4635.8,0.02]
[1755872239686,3.0,4640.8,4635.8,0.02]
[1755872239854,5.176,4641.1,4636.9,1.79]
[1755872239855,0.66,4640.0,4636.9,1.79]
[1755872240054,9.2165,4640.7,4636.9,1.79]
[1755872240055,0.4425,4639.9,4636.9,1.79]
[1755872240277,0.33737502,4639.6,4636.9,3.58]
[1755872240782,0.4425,4639.9,4636.9,7.03891762]
[1755872241082,7.12,4641.0,4637.0,0.4311]
[1755872241245,1.657,4639.8,4636.9,7.03891762]
[1755872241453,0.66,4639.1,4636.9,7.03891762]
[1755872241647,1.657,4640.6,4637.0,0.02156566]
[1755872241846,13.13607843,4643.3,4637.0,0.02156566]
[1755872241847,5.178,4642.6,4637.1,0.4311]
[1755872242086,0.33722973,4643.5,4637.2,1.67856473]
[1755872242254,5.178,4644.0,4637.4,2.15638073]
[1755872242591,0.4425,4642.1,4637.5,1.657]
[1755872242746,3.0,4641.6,4637.5,1.657]
[1755872242952,0.33729328,4643.2,4636.9,10.61891762]
[1755872242953,0.33729328,4643.2,4637.6,0.45266287]
[1755872243164,58.0279,4645.8,4637.6,0.45266287]
[1755872243165,0.4425,4644.0,4637.7,5.178]
[1755872243386,1.657,4643.2,4637.8,3.4311]
[1755872243560,0.0192,4641.8,4637.9,5.83770973]
[1755872243882,5.178,4644.7,4637.9,5.83770973]
[1755872243883,0.02,4645.8,4640.0,0.66]
[1755872244089,0.02,4645.8,4640.1,7.2661]
[1755872244090,0.21195,4645.7,4640.1,7.2661]
[1755872244245,0.21195,4645.7,4640.3,5.15503307]
[1755872244246,0.4425,4645.6,4640.3,5.15503307]
[1755872244449,0.4425,4645.6,4640.4,0.4311]
[1755872244652,0.4425,4645.6,4640.8,0.02]
[1755872244869,0.35702152,4645.8,4642.2,0.66]
[1755872244870,0.02,4645.8,4642.2,0.66]
[1755872245108,0.02,4645.8,4640.8,0.02]
[1755872245109,0.02,4645.8,4644.8,2.15291231]
[1755872245295,0.02,4645.8,4644.0,0.4311]
[1755872245453,0.02,4645.8,4644.1,0.4311]
[1755872245851,0.02,4645.8,4644.2,2.15322337]
[1755872246089,0.02,4645.8,4644.1,2.0871]
[1755872246255,0.02,4645.8,4643.2,0.4311]
[1755872246453,0.02,4645.8,4641.9,0.1598566]
[1755872246659,0.66,4645.6,4641.9,0.1598566]
[1755872246862,0.02,4645.8,4640.8,0.02]
[1755872246863,0.66,4645.3,4640.8,0.02]
[1755872247050,3.66,4644.3,4640.8,0.02]
[1755872247250,0.66,4644.1,4640.8,0.02]
[1755872247789,3.66,4645.2,4641.0,3.0]
[1755872248094,1.656,4645.5,4641.1,0.4311]
[1755872248253,1.656,4645.5,4638.9,0.2]
[1755872248254,2.15295257,4644.8,4640.3,0.376]
[1755872248457,0.66,4644.6,4640.2,0.4311]
[1755872248774,1.656,4645.5,4640.2,0.4311]
[1755872248775,3.0,4644.2,4640.2,0.4311]
[1755872248953,0.66,4644.3,4637.8,1.656]
[1755872248954,0.66,4642.7,4637.8,1.656]
[1755872249155,2.7585,4644.1,4637.8,1.656]
[1755872249156,3.66,4642.5,4637.9,0.4311]
[1755872249353,0.66,4641.2,4639.8,0.02]
[1755872249591,3.66,4641.0,4639.8,0.02]
[1755872249753,3.66,4641.0,4638.8,0.02]